bitfinex-derivatives/quotes_BTCF0:USTF0_20241203
["timestamp","ask_amount","ask_price","bid_price","bid_amount"]
[1733245592755,0.052574,95068.0,95067.0,0.052574]
[1733245592957,0.413374,95068.0,95066.0,0.05415288]
[1733245593157,0.413414,95068.0,95066.0,0.05415288]
[1733245593454,0.00010278,95067.0,95066.0,0.05415288]
[1733245593655,0.00010278,95067.0,95066.0,0.00157788]
[1733245593854,0.00010278,95067.0,95057.0,9.65e-05]
[1733245594154,0.413419,95058.0,95057.0,9.65e-05]
[1733245594354,0.576059,95058.0,95057.0,9.65e-05]
[1733245595249,0.576059,95058.0,95044.0,0.0026]
[1733245595250,0.052586,95045.0,95044.0,0.0026]
[1733245595553,4e-05,95045.0,95044.0,0.052587]
[1733245595744,0.16272,95045.0,95044.0,0.052587]
[1733245596753,0.052587,95044.0,95038.0,0.05259]
[1733245596957,0.052587,95044.0,95040.0,0.052589]
[1733245597356,0.19436947,95045.0,95044.0,0.001]
[1733245597553,0.60875547,95045.0,95044.0,0.001]
[1733245597872,0.60875547,95045.0,95026.0,0.0026]
[1733245597873,0.052596,95027.0,95026.0,0.0026]
[1733245598156,0.051597,95023.0,95022.0,8.373e-05]
[1733245598359,7.444e-05,95026.0,95022.0,8.373e-05]
[1733245598546,0.052637,95023.0,95022.0,8.373e-05]
[1733245598753,0.052637,95023.0,95008.0,0.055206]
[1733245598754,0.052605,95009.0,95008.0,0.0026]
[1733245599061,0.052605,95009.0,94992.0,0.3608]
[1733245599062,0.052609,95002.0,94990.0,0.0026]
[1733245599257,0.3608,95001.0,94995.0,0.052613]
[1733245599562,0.3608,95001.0,94999.0,0.05261]
[1733245599563,0.36084,95001.0,94999.0,0.05261]
[1733245599762,0.39081152,95001.0,94993.0,0.052614]
[1733245600063,0.39081152,95001.0,94983.0,0.36497926]
[1733245600064,0.39081152,95001.0,94997.0,0.052612]
[1733245600249,0.39081152,95001.0,94983.0,0.36497926]
[1733245600453,0.36084,95001.0,94983.0,0.36497926]
[1733245600651,0.36084,95001.0,94983.0,0.3634]
[1733245600848,0.36084,95001.0,94998.0,0.052611]
[1733245601060,0.36084,95001.0,94983.0,0.3634]
[1733245601061,4e-05,95001.0,95000.0,0.15261]
[1733245601360,0.00204,95001.0,95000.0,0.15261]
[1733245601550,0.00204,95001.0,95000.0,0.1]
[1733245602548,0.1648,95001.0,95000.0,0.1]
[1733245603957,0.00204,95001.0,95000.0,0.1]
[1733245604158,0.1648,95001.0,95000.0,0.1]
[1733245605055,0.1648,95001.0,95000.0,0.152611]
[1733245606061,0.00204,95001.0,95000.0,0.152611]
[1733245610863,0.00204,95001.0,95000.0,0.1]
[1733245610864,0.054649,95001.0,95000.0,0.1]
[1733245611259,0.415449,95001.0,95000.0,0.1]
[1733245612259,0.36284,95001.0,95000.0,0.1]
[1733245612666,0.415449,95001.0,95000.0,0.1]
[1733245613167,0.054649,95001.0,95000.0,0.1]
[1733245613370,0.00204,95001.0,95000.0,0.1]
[1733245614072,0.054649,95001.0,95000.0,0.1]
[1733245614762,0.054649,95001.0,95000.0,0.15261]
[1733245614763,0.00204,95001.0,95000.0,0.15261]
[1733245615369,0.00204,95001.0,95000.0,0.1]
[1733245615873,0.00204,95001.0,95000.0,0.15261]
[1733245616764,0.054649,95001.0,95000.0,0.1]
[1733245617364,0.00204,95001.0,95000.0,0.1]
[1733245617567,0.00204,95001.0,95000.0,0.15261]
[1733245617769,0.054651,95001.0,95000.0,0.1]
[1733245619468,0.00204,95001.0,95000.0,0.1]
[1733245620063,0.054649,95001.0,95000.0,0.1]
[1733245621370,0.415449,95001.0,95000.0,1.7e-07]
[1733245621571,0.052618,94984.0,94980.0,0.00171124]
[1733245621774,0.052614,94992.0,94980.0,0.00171124]
[1733245621775,0.05262,94981.0,94980.0,0.00171124]
[1733245622080,0.05266,94981.0,94980.0,0.00171124]
[1733245623077,0.05366,94981.0,94980.0,0.00171124]
[1733245624368,0.05466,94981.0,94980.0,0.00171124]
[1733245625575,0.052629,94966.0,94965.0,0.0026]
[1733245625772,0.169,94967.0,94947.0,0.0026]
[1733245625978,0.052639,94947.0,94946.0,0.2247]
[1733245626173,4e-05,94948.0,94946.0,0.2247]
[1733245626369,4e-05,94947.0,94946.0,0.2247]
[1733245626671,0.00013344,94947.0,94946.0,0.05264]
[1733245627684,0.00213344,94947.0,94946.0,0.05264]
[1733245628074,0.2115,94989.0,94946.0,0.3]
[1733245628274,0.15468522,94995.0,94984.0,0.052619]
[1733245628275,0.0026,94985.0,94984.0,0.052619]
[1733245628477,0.05419503,94991.0,94984.0,0.413419]
[1733245628780,0.00158003,94991.0,94990.0,4e-05]
[1733245629082,0.00170157,94991.0,94990.0,4e-05]
[1733245629470,0.00170157,94991.0,94990.0,0.052656]
[1733245629975,0.228,95019.0,95013.0,0.052603]
[1733245630177,0.3608,95028.0,95015.0,0.052602]
[1733245630178,0.17057916,95021.0,95015.0,0.052602]
[1733245630480,0.17057916,95021.0,95010.0,0.3608]
[1733245630481,0.00157916,95021.0,95020.0,4e-05]
[1733245630669,0.05417716,95021.0,95020.0,4e-05]
[1733245631075,0.05430208,95021.0,95020.0,4e-05]
[1733245631282,0.22330208,95021.0,95020.0,4e-05]
[1733245631580,0.05430208,95021.0,95020.0,4e-05]
[1733245631785,0.22330208,95021.0,95020.0,4e-05]
[1733245632081,0.25330255,95021.0,95020.0,4e-05]
[1733245632379,0.08430255,95021.0,95020.0,4e-05]
[1733245632584,0.25330255,95021.0,95020.0,4e-05]
[1733245632893,0.25330255,95021.0,95013.0,4e-05]
[1733245632894,0.052603,95014.0,95013.0,4e-05]
[1733245633074,0.052611,95000.0,94991.0,0.0105]
[1733245633274,0.052611,95000.0,94984.0,0.54952821]
[1733245633275,0.169,95000.0,94984.0,0.54952821]
[1733245633478,0.052621,94982.0,94980.0,0.18872821]
[1733245633676,0.052621,94982.0,94978.0,0.00072]
[1733245633877,8e-05,94981.0,94980.0,0.052622]
[1733245635382,8e-05,94981.0,94980.0,0.413422]
[1733245636488,0.00208,94981.0,94980.0,0.413422]
[1733245640580,0.15454349,94993.0,94991.0,0.052616]
[1733245640781,0.15454349,94996.0,94993.0,0.052615]
[1733245640981,0.15454349,94997.0,94993.0,0.052615]
[1733245641286,0.18545178,95006.0,94998.0,0.052612]
[1733245641485,0.21680991,95015.0,95005.0,0.3608]
[1733245641800,0.21680991,95017.0,95014.0,0.052642]
[1733245642085,0.09253155,95015.0,95014.0,0.052642]
[1733245642285,0.09253155,95015.0,95014.0,0.413442]
[1733245642490,0.09253155,95015.0,95014.0,4e-05]
[1733245642687,0.03113683,95016.0,95014.0,4e-05]
[1733245642993,0.40725628,95019.0,95018.0,0.0526]
[1733245643190,0.23825628,95019.0,95018.0,0.0526]
[1733245643387,0.40721628,95019.0,95018.0,4e-05]
[1733245643591,0.3608,95025.0,95018.0,4e-05]
[1733245643891,0.3608,95025.0,95014.0,0.36184]
[1733245643892,0.15441444,95030.0,95020.0,0.052639]
[1733245644088,0.03078773,95026.0,95020.0,0.052639]
[1733245645291,0.15441444,95030.0,95020.0,0.052639]
[1733245645487,0.15441444,95031.0,95020.0,0.052639]
[1733245645688,0.00270408,95021.0,95020.0,0.052639]
[1733245645994,0.03084847,95035.0,95020.0,4e-05]
[1733245646290,0.16668,95064.0,95020.0,4e-05]
[1733245646291,0.0026,95053.0,95051.0,0.052582]
[1733245646480,0.0026,95053.0,95036.0,0.05259]
[1733245646481,0.16664,95061.0,95053.0,0.3608]
[1733245646687,0.05258,95054.0,95052.0,4e-05]
[1733245646882,0.00013516,95053.0,95052.0,4e-05]
[1733245647085,0.00017516,95053.0,95052.0,4e-05]
[1733245647487,0.00017516,95053.0,95052.0,0.36084]
[1733245647691,0.00017516,95053.0,95052.0,0.3608]
[1733245648797,0.00417516,95053.0,95051.0,0.052583]
[1733245649186,4e-05,95052.0,95051.0,0.052583]
[1733245649387,4e-05,95052.0,95045.0,0.052586]
[1733245649789,4e-05,95046.0,95045.0,0.052586]
[1733245650695,4e-05,95046.0,95045.0,0.053586]
[1733245651594,4e-05,95046.0,95045.0,0.001]
[1733245652587,0.00104,95046.0,95045.0,0.001]
[1733245652793,0.00104,95046.0,95044.0,0.052585]
[1733245653189,4e-05,95045.0,95044.0,0.052585]
[1733245653390,0.00013516,95053.0,95052.0,0.052581]
[1733245653590,4e-05,95068.0,95067.0,0.052573]
[1733245653788,0.0015783,95070.0,95069.0,0.052572]
[1733245654189,0.0015783,95070.0,95069.0,0.05261201]
[1733245654699,0.00011799,95070.0,95069.0,0.05261201]
[1733245655494,0.00011799,95070.0,95069.0,4.001e-05]
[1733245655992,0.00011799,95070.0,95069.0,0.00104001]
[1733245656197,0.00011799,95070.0,95069.0,0.00204001]
[1733245656698,0.00111799,95070.0,95049.0,0.0026]
[1733245656899,0.052575,95065.0,95055.0,0.05258]
[1733245657086,0.436375,95064.0,95055.0,0.05258]
[1733245657288,0.3838,95064.0,95049.0,0.02104389]
[1733245657589,0.3838,95064.0,95063.0,0.052575]
[1733245657795,0.58166538,95064.0,95050.0,0.1596198]
[1733245658093,0.21540606,95057.0,95056.0,0.052579]
[1733245658294,0.09155997,95057.0,95056.0,0.052579]
[1733245658489,0.24617836,95062.0,95052.0,0.3628]
[1733245658694,0.24617836,95062.0,95061.0,0.052576]
[1733245658997,0.19791013,95062.0,95061.0,4e-05]
[1733245659596,0.19791013,95062.0,95061.0,0.052616]
[1733245660099,0.19891013,95062.0,95061.0,0.052616]
[1733245660693,0.09255997,95062.0,95061.0,0.052616]
[1733245661092,0.09092986,95062.0,95061.0,0.052616]
[1733245661893,0.08992986,95062.0,95061.0,0.052616]
[1733245662094,0.08992986,95062.0,95061.0,0.053616]
[1733245662397,0.09092986,95062.0,95061.0,0.053616]
[1733245662699,0.09092986,95062.0,95061.0,0.414416]
[1733245662700,0.001,95062.0,95061.0,0.414416]
[1733245663087,0.001,95062.0,95061.0,0.634816]
[1733245664897,0.001,95062.0,95061.0,0.36184]
[1733245665195,0.08460355,95062.0,95061.0,0.00104]
[1733245665401,0.053576,95062.0,95061.0,0.00104]
[1733245669696,0.052581,95055.0,95049.0,0.07362789]
[1733245669998,0.052578,95060.0,95057.0,0.05258]
[1733245670198,0.052578,95060.0,95049.0,0.02104389]
[1733245670199,0.16756,95062.0,95049.0,0.02104389]
[1733245670401,0.001,95062.0,95061.0,0.052577]
[1733245671701,0.16656,95068.0,95059.0,4e-05]
[1733245671903,0.16656,95068.0,95067.0,0.052574]
[1733245672091,0.2166,95075.0,95069.0,0.052573]
[1733245672092,0.35125219,95074.0,95069.0,0.052573]
[1733245672296,0.18469219,95072.0,95069.0,0.052573]
[1733245672499,0.18469219,95073.0,95069.0,0.052613]
[1733245672698,0.21547896,95074.0,95069.0,0.052613]
[1733245672893,0.2166,95075.0,95069.0,0.052613]
[1733245672894,0.08999897,95073.0,95069.0,0.052613]
[1733245673102,0.1800091,95072.0,95069.0,0.052613]
[1733245673299,0.30548244,95072.0,95069.0,0.052613]
[1733245673499,0.12106887,95070.0,95069.0,0.052613]
[1733245673701,0.12106942,95070.0,95069.0,0.052613]
[1733245674807,0.12418068,95070.0,95069.0,0.052613]
[1733245675007,0.12718068,95070.0,95069.0,0.052613]
[1733245675200,0.03700289,95070.0,95069.0,0.052613]
[1733245676504,0.12716681,95070.0,95069.0,0.052613]
[1733245676807,0.21733152,95070.0,95069.0,0.052613]
[1733245677196,0.32217897,95070.0,95069.0,0.052613]
[1733245679203,0.29129407,95070.0,95069.0,0.052613]
[1733245679512,0.18644662,95070.0,95069.0,0.052613]
[1733245679703,0.09628191,95070.0,95069.0,0.052613]
[1733245680397,0.14885391,95070.0,95069.0,4e-05]
[1733245680597,0.09628191,95070.0,95069.0,4e-05]
[1733245680811,0.22332199,95073.0,95069.0,0.413413]
[1733245681010,0.21704903,95091.0,95087.0,0.052563]
[1733245681204,0.40986369,95100.0,95097.0,0.052557]
[1733245681205,0.1,95100.0,95097.0,0.052557]
[1733245681613,0.1,95100.0,95097.0,0.052597]
[1733245681800,0.0017044,95098.0,95097.0,0.052597]
[1733245682004,0.00012619,95098.0,95097.0,0.052597]
[1733245682407,0.21712506,95109.0,95108.0,0.052551]
[1733245682911,0.26967506,95109.0,95108.0,4e-05]
[1733245683110,0.63047506,95109.0,95108.0,4e-05]
[1733245683408,0.6305355,95109.0,95108.0,4e-05]
[1733245683612,0.7929355,95109.0,95108.0,4e-05]
[1733245683926,0.57581044,95109.0,95108.0,4e-05]
[1733245684216,0.41341044,95109.0,95108.0,4e-05]
[1733245684410,0.41341044,95109.0,95108.0,0.05359]
[1733245684411,0.36586044,95109.0,95108.0,0.05359]
[1733245685120,0.36286044,95109.0,95108.0,0.05259]
[1733245685418,0.36986044,95109.0,95108.0,0.05359]
[1733245685911,0.36286044,95109.0,95108.0,0.05259]
[1733245686211,0.36486044,95109.0,95108.0,0.05259]
[1733245686413,0.00406044,95109.0,95108.0,0.05259]
[1733245687020,0.00206044,95109.0,95108.0,0.05259]
[1733245687222,0.00406044,95109.0,95108.0,0.05259]
[1733245687727,0.36237752,95129.0,95108.0,0.05259]
[1733245687728,0.00157752,95129.0,95108.0,0.52324]
[1733245688023,0.00157752,95129.0,95128.0,0.413379]
[1733245688210,0.6452,95148.0,95128.0,0.36084]
[1733245688416,0.052528,95147.0,95138.0,0.052533]
[1733245688722,0.67661443,95148.0,95132.0,0.052537]
[1733245688924,0.05253,95144.0,95130.0,0.052538]
[1733245689219,0.009,95129.0,95128.0,0.413339]
[1733245689418,0.009,95129.0,95128.0,0.3608]
[1733245689722,4e-05,95129.0,95128.0,0.413339]
[1733245690030,0.00104,95129.0,95128.0,0.413339]
[1733245690721,4e-05,95129.0,95128.0,0.413339]
[1733245690920,4e-05,95129.0,95128.0,0.415339]
[1733245691118,4e-05,95129.0,95128.0,0.577739]
[1733245691315,0.00104,95129.0,95128.0,0.421339]
[1733245691526,0.00104,95129.0,95128.0,0.583739]
[1733245692116,0.00104,95129.0,95128.0,0.584739]
[1733245692522,0.1624,95153.0,95128.0,0.584739]
[1733245692523,0.3608,95159.0,95128.0,0.584739]
[1733245692822,0.3608,95151.0,95136.0,0.3608]
[1733245693021,0.052533,95140.0,95136.0,0.3608]
[1733245693222,0.052532,95142.0,95136.0,0.3608]
[1733245693425,0.3608,95151.0,95136.0,0.3608]
[1733245693622,0.16236,95153.0,95136.0,0.3608]
[1733245693815,0.052524,95155.0,95141.0,0.052532]
[1733245694021,0.052524,95155.0,95152.0,4e-05]
[1733245694219,0.052524,95155.0,95154.0,4e-05]
[1733245694417,0.214884,95155.0,95154.0,4e-05]
[1733245694619,0.514884,95155.0,95154.0,4e-05]
[1733245694915,0.052536,95134.0,95133.0,0.0026]
[1733245695121,0.052538,95129.0,95128.0,0.00757678]
[1733245695318,0.052538,95129.0,95128.0,0.006]
[1733245695523,0.05255,95109.0,95108.0,0.0026]
[1733245695720,0.052554,95102.0,95099.0,0.052555]
[1733245696026,8.001e-05,95100.0,95099.0,0.052555]
[1733245697720,8.001e-05,95100.0,95083.0,0.052564]
[1733245698022,0.00208001,95100.0,95097.0,0.052556]
[1733245698225,0.05463501,95100.0,95098.0,0.052556]
[1733245698521,0.052555,95099.0,95098.0,0.052556]
[1733245698916,0.214915,95099.0,95098.0,0.052556]
[1733245699423,0.052555,95099.0,95098.0,0.052556]
[1733245699630,0.00508001,95100.0,95099.0,0.052555]
[1733245699821,0.00108001,95100.0,95099.0,0.052555]
[1733245700017,0.00108001,95100.0,95099.0,4e-05]
[1733245700331,0.05363501,95100.0,95099.0,4e-05]
[1733245701220,0.05263501,95100.0,95099.0,4e-05]
[1733245701418,0.05463501,95100.0,95099.0,4e-05]
[1733245702221,0.05463501,95100.0,95095.0,9.012e-05]
[1733245702222,0.052557,95096.0,95095.0,9.012e-05]
[1733245702528,0.05463501,95100.0,95095.0,9.012e-05]
[1733245702529,0.2148,95099.0,95095.0,9.012e-05]
[1733245702720,0.16236,95096.0,95095.0,0.05264712]
[1733245703120,0.00508001,95100.0,95099.0,0.052555]
[1733245703121,0.05763501,95100.0,95099.0,0.052555]
[1733245703321,0.21999501,95100.0,95099.0,0.052555]
[1733245703630,0.21699501,95100.0,95099.0,0.052555]
[1733245703821,0.21499501,95100.0,95099.0,0.052555]
[1733245704134,8.001e-05,95100.0,95099.0,0.052555]
[1733245704427,0.16244001,95100.0,95099.0,0.052555]
[1733245704627,0.00108001,95100.0,95099.0,0.052555]
[1733245705224,0.00108001,95100.0,95095.0,9.012e-05]
[1733245705525,0.00012001,95096.0,95095.0,9.012e-05]
[1733245706424,0.00012001,95096.0,95095.0,0.05264712]
[1733245707024,0.003,95100.0,95095.0,0.05264712]
[1733245707224,0.4256,95139.0,95122.0,0.052542]
[1733245707425,0.02997578,95136.0,95128.0,0.052539]
[1733245708333,0.02997578,95136.0,95128.0,0.05261902]
[1733245708728,0.2153,95152.0,95134.0,0.3608]
[1733245708930,0.16236,95151.0,95135.0,8.002e-05]
[1733245709130,0.052535,95136.0,95135.0,8.002e-05]
[1733245709724,0.16236,95151.0,95139.0,0.052533]
[1733245709925,0.24702257,95141.0,95138.0,0.052533]
[1733245710130,0.196032,95140.0,95138.0,0.052533]
[1733245710326,4e-05,95139.0,95138.0,0.052533]
[1733245710540,0.196072,95139.0,95138.0,0.052533]
[1733245710830,0.196072,95139.0,95130.0,0.3608]
[1733245711029,0.09071383,95138.0,95134.0,0.052536]
[1733245711233,0.09071383,95138.0,95130.0,0.3608]
[1733245711234,0.001,95136.0,95132.0,0.3608]
[1733245711437,0.002,95151.0,95136.0,0.052535]
[1733245711631,0.002,95151.0,95150.0,0.413327]
[1733245712731,0.052523,95158.0,95150.0,0.3608]
[1733245712946,0.0296026,95168.0,95150.0,0.3608]
[1733245713133,0.052521,95162.0,95157.0,8.002e-05]
[1733245713634,0.57754866,95169.0,95157.0,8.002e-05]
[1733245713635,0.36144,95169.0,95157.0,8.002e-05]
[1733245713831,0.3608,95169.0,95157.0,8.002e-05]
[1733245714027,0.3608,95169.0,95168.0,8.002e-05]
[1733245714629,0.39043849,95169.0,95168.0,8.002e-05]
[1733245714831,0.39943849,95169.0,95168.0,8.002e-05]
[1733245715435,0.39943849,95169.0,95168.0,0.00108002]
[1733245715834,0.40843849,95169.0,95168.0,0.00208002]
[1733245716233,0.40843849,95169.0,95157.0,8.002e-05]
[1733245716234,0.052523,95158.0,95157.0,8.002e-05]
[1733245716537,4e-05,95158.0,95157.0,8.002e-05]
[1733245716931,0.16232,95158.0,95157.0,8.002e-05]
[1733245717528,0.16232,95158.0,95157.0,0.00208002]
[1733245717529,0.17732,95158.0,95157.0,0.00208002]
[1733245719743,0.53812,95158.0,95157.0,0.00208002]
[1733245720132,0.53812,95158.0,95137.0,0.0026]
[1733245720332,0.052529,95146.0,95143.0,0.052531]
[1733245720537,8.003e-05,95139.0,95138.0,0.05411047]
[1733245721237,8.003e-05,95139.0,95138.0,0.00157647]
[1733245721639,8.003e-05,95139.0,95123.0,0.3608]
[1733245721640,0.052541,95128.0,95124.0,0.052542]
[1733245721839,0.3608,95132.0,95123.0,0.3608]
[1733245722154,0.05262203,95125.0,95123.0,0.3608]
[1733245722443,0.05262203,95125.0,95111.0,0.03060112]
[1733245722646,0.05262203,95125.0,95119.0,0.052545]
[1733245722835,0.052542,95125.0,95119.0,0.052545]
[1733245723040,0.052542,95125.0,95123.0,0.003]
[1733245723744,0.052543,95123.0,95119.0,0.003]
[1733245724047,0.16228,95123.0,95122.0,0.052544]
[1733245724646,0.16228,95123.0,95119.0,0.003]
[1733245724845,0.052545,95120.0,95119.0,0.003]
[1733245725248,0.4323,95122.0,95104.0,0.3608]
[1733245725457,0.3608,95112.0,95099.0,0.052556]
[1733245725648,8.003e-05,95105.0,95099.0,0.052556]
[1733245725850,8.003e-05,95105.0,95097.0,0.3608]
[1733245725851,0.052555,95101.0,95097.0,0.3608]
[1733245726052,8.003e-05,95105.0,95097.0,0.3608]
[1733245726238,8.003e-05,95098.0,95097.0,0.413357]
[1733245727346,8.003e-05,95098.0,95097.0,0.418357]
[1733245727546,8.003e-05,95098.0,95097.0,0.3658]
[1733245727747,8.003e-05,95098.0,95097.0,0.3608]
[1733245727943,8.003e-05,95098.0,95097.0,0.005]
[1733245727944,0.00108003,95098.0,95097.0,0.005]
[1733245728345,0.00208003,95098.0,95097.0,0.062557]
[1733245735051,0.00208003,95098.0,95097.0,0.01]
[1733245735253,0.05463703,95098.0,95097.0,0.01]
[1733245735457,0.00208003,95098.0,95097.0,0.01]
[1733245736256,0.00208003,95098.0,95097.0,0.062557]
[1733245743561,0.05463703,95098.0,95097.0,0.01]
[1733245743960,0.00208003,95098.0,95097.0,0.01]
[1733245744153,0.00208003,95098.0,95097.0,0.062557]
[1733245746161,8.003e-05,95105.0,95104.0,0.052553]
[1733245746361,8.003e-05,95105.0,95104.0,0.413353]
[1733245747767,0.4253,95133.0,95104.0,0.413353]
[1733245747768,0.03026869,95135.0,95127.0,0.05254]
[1733245747971,0.00157709,95139.0,95138.0,0.052534]
[1733245748562,0.21584945,95144.0,95134.0,0.36088003]
[1733245748958,0.21584945,95144.0,95143.0,0.05261103]
[1733245749160,0.21584945,95149.0,95148.0,0.052529]
[1733245749663,0.21584945,95149.0,95148.0,0.05260903]
[1733245749969,0.24670255,95166.0,95165.0,0.052519]
[1733245750160,0.34074036,95166.0,95165.0,0.575599]
[1733245750353,0.24670255,95166.0,95165.0,0.575599]
[1733245750555,0.24670255,95166.0,95165.0,0.57567903]
[1733245750756,0.03102522,95178.0,95165.0,0.57567903]
[1733245751363,0.03102522,95178.0,95166.0,8.003e-05]
[1733245751864,0.0105767,95167.0,95166.0,8.003e-05]
[1733245752057,0.0105767,95167.0,95166.0,0.41339903]
[1733245752259,0.0105767,95167.0,95166.0,0.41352658]
[1733245752260,0.0165767,95167.0,95166.0,0.41352658]
[1733245752456,0.0165767,95167.0,95166.0,0.41452658]
[1733245753562,0.0105767,95167.0,95166.0,0.41452658]
[1733245753762,0.0165767,95167.0,95166.0,0.41552658]
[1733245754165,0.0145767,95167.0,95166.0,0.41552658]
[1733245754359,0.0145767,95167.0,95166.0,0.36300758]
[1733245755165,0.0125767,95167.0,95166.0,0.36200758]
[1733245756263,0.0125767,95167.0,95166.0,0.72280758]
[1733245757972,0.011,95167.0,95166.0,0.72280758]
[1733245759767,0.219,95199.0,95192.0,0.052505]
[1733245760072,0.2164,95199.0,95192.0,0.413305]
[1733245760764,0.2164,95199.0,95192.0,0.41338503]
[1733245761159,0.2164,95199.0,95192.0,0.36088003]
[1733245761470,0.1622,95197.0,95185.0,0.3608]
[1733245761771,0.05251,95183.0,95173.0,0.3608]
[1733245761969,0.052509,95185.0,95173.0,0.3608]
[1733245762169,4e-05,95174.0,95173.0,0.3608]
[1733245762988,4e-05,95174.0,95171.0,0.00157615]
[1733245762989,0.052515,95173.0,95171.0,0.00157615]
[1733245763470,0.052515,95173.0,95149.0,0.0026]
[1733245763471,0.16224,95172.0,95149.0,0.0026]
[1733245763663,0.16224,95172.0,95132.0,0.4416]
[1733245763664,0.3608,95150.0,95141.0,0.0026]
[1733245763862,0.36084,95150.0,95126.0,0.52292]
[1733245764165,4e-05,95144.0,95143.0,0.05261203]
[1733245764369,0.0001673,95144.0,95143.0,0.05261203]
[1733245764761,0.0001673,95144.0,95143.0,0.06061203]
[1733245765560,0.0001673,95144.0,95143.0,0.06461203]
[1733245766763,0.0001673,95144.0,95143.0,0.05661203]
[1733245766958,0.0001673,95144.0,95143.0,0.06461203]
[1733245767673,0.0001673,95144.0,95143.0,0.06361203]
[1733245767871,0.0001673,95144.0,95143.0,0.05961203]
[1733245768077,0.0001673,95144.0,95143.0,0.06361203]
[1733245773266,0.0001673,95144.0,95143.0,0.05661203]
[1733245773463,0.0011673,95144.0,95143.0,0.06361203]
[1733245774166,0.0011673,95144.0,95143.0,0.01108003]
[1733245774465,0.0001673,95144.0,95143.0,0.00408003]
[1733245774979,0.3609673,95144.0,95138.0,7.655e-05]
[1733245775172,0.052534,95139.0,95138.0,7.655e-05]
[1733245775480,0.05261403,95139.0,95138.0,7.655e-05]
[1733245776472,0.15429606,95139.0,95138.0,7.655e-05]
[1733245776878,0.30008003,95139.0,95113.0,0.0105]
[1733245777068,0.413343,95124.0,95119.0,0.052545]
[1733245777275,0.57558303,95124.0,95110.0,0.02102174]
[1733245777671,0.80198303,95124.0,95110.0,0.02102174]
[1733245777870,0.80198303,95124.0,95119.0,0.052545]
[1733245778281,0.80198303,95124.0,95102.0,0.00012215]
[1733245778282,0.80298303,95124.0,95123.0,0.015]
[1733245778480,0.80298303,95124.0,95102.0,0.00012215]
[1733245778481,1.05044003,95124.0,95102.0,0.00012215]
[1733245778678,1.05044003,95124.0,95104.0,0.052553]
[1733245778679,0.052554,95105.0,95104.0,0.052553]
[1733245778883,0.052554,95105.0,95102.0,0.00012215]
[1733245778884,0.05263403,95103.0,95102.0,0.00012215]
[1733245779070,0.05263403,95103.0,95102.0,0.05267715]
[1733245779375,8.003e-05,95103.0,95102.0,0.05267715]
[1733245780680,8.003e-05,95103.0,95102.0,0.06067715]
[1733245780886,8.003e-05,95103.0,95102.0,0.00812215]
[1733245780887,0.05263403,95103.0,95102.0,0.00812215]
[1733245781180,0.05363403,95103.0,95102.0,0.00812215]
[1733245781372,0.08354606,95103.0,95102.0,0.00812215]
[1733245781569,0.08354606,95103.0,95084.0,0.00157747]
[1733245781570,0.052563,95088.0,95084.0,0.05414147]
[1733245781772,0.33109714,95103.0,95084.0,0.05414147]
[1733245781773,0.413364,95085.0,95084.0,0.05414147]
[1733245781974,0.41344403,95085.0,95084.0,0.05414147]
[1733245782176,0.052568,95078.0,95073.0,0.05257]
[1733245782378,0.3608,95074.0,95073.0,0.05257]
[1733245782582,0.36088003,95074.0,95073.0,0.05257]
[1733245782783,0.36088003,95074.0,95073.0,0.07360156]
[1733245783481,8.003e-05,95074.0,95073.0,0.07360156]
[1733245783785,8.003e-05,95074.0,95073.0,0.23580156]
[1733245784180,0.00108003,95074.0,95073.0,0.23680156]
[1733245784379,0.3608,95098.0,95073.0,0.18823156]
[1733245784578,0.3608,95098.0,95092.0,0.05256]
[1733245784785,0.3608,95098.0,95097.0,4e-05]
[1733245785586,0.39131251,95098.0,95097.0,4e-05]
[1733245786182,0.44386951,95098.0,95097.0,4e-05]
[1733245786688,0.44486951,95098.0,95097.0,0.00304]
[1733245787381,0.44386951,95098.0,95097.0,0.00404]
[1733245790485,0.39131251,95098.0,95097.0,0.00404]
[1733245791785,0.00010508,95103.0,95102.0,0.052555]
[1733245792285,0.00010508,95103.0,95102.0,0.052595]
[1733245794383,0.00010508,95103.0,95102.0,0.053595]
[1733245794585,0.00010508,95103.0,95102.0,0.057595]
[1733245794986,0.00010508,95103.0,95102.0,0.053595]
[1733245795181,0.00010508,95103.0,95102.0,0.055595]
[1733245796088,0.05265908,95103.0,95102.0,0.00304]
[1733245796488,0.05265908,95103.0,95102.0,0.055595]
[1733245796489,0.00010508,95103.0,95102.0,0.055595]
[1733245796987,0.00010508,95103.0,95102.0,0.054595]
[1733245797180,0.00010508,95103.0,95102.0,0.00304]
[1733245797690,0.00010508,95103.0,95102.0,0.00104]
[1733245798491,0.00510508,95103.0,95102.0,0.00204]
[1733245798689,0.00510508,95103.0,95102.0,0.00104]
[1733245798893,0.00510508,95103.0,95102.0,0.00204]
[1733245799689,0.00510508,95103.0,95102.0,0.053594]
[1733245799690,0.00710508,95103.0,95102.0,0.053594]
[1733245799887,0.00210508,95103.0,95102.0,0.052594]
[1733245800193,0.00710508,95103.0,95102.0,0.053594]
[1733245800498,0.3608,95125.0,95124.0,0.052542]
[1733245800688,0.3608,95125.0,95102.0,0.47868713]
[1733245800689,0.3608,95125.0,95103.0,0.272054]
[1733245800881,0.3608,95125.0,95124.0,4e-05]
[1733245801283,9.075e-05,95125.0,95124.0,4e-05]
[1733245801688,0.1851093,95145.0,95144.0,0.052531]
[1733245801890,0.18566931,95146.0,95144.0,0.052531]
[1733245802086,0.18566931,95146.0,95144.0,0.052571]
[1733245802287,0.00056001,95146.0,95144.0,0.052571]
[1733245802697,0.16268001,95147.0,95144.0,4e-05]
[1733245802882,0.052537,95134.0,95132.0,0.00010218]
[1733245803084,0.16212,95137.0,95132.0,0.00010218]
[1733245803292,0.1851093,95137.0,95132.0,0.00010218]
[1733245803605,0.18549625,95145.0,95144.0,0.052531]
[1733245803889,0.18549625,95145.0,95132.0,0.00010218]
[1733245803890,0.00013042,95145.0,95132.0,0.00010218]
[1733245804298,4e-05,95133.0,95132.0,0.05864018]
[1733245804692,0.00013042,95145.0,95144.0,0.052531]